fUST/lending_fUST_20260204
["ID","MTS","AMOUNT","RATE_DAILY","PERIOD"]
[404489043,1770208241650,-460.40576839,0.0001433,2]
[404489045,1770208241659,-1009.42155711,0.00014368,2]
[404489047,1770208241668,-1340.67069541,0.00014368,2]
[404489049,1770208241677,-500.32906268,0.00014368,2]
[404489051,1770208241685,-901.32607296,0.00014368,2]
[404489053,1770208241694,-1157.37344349,0.00014368,2]
[404489055,1770208241703,-1500.0,0.00014368,2]
[404489057,1770208241717,-1500.0,0.00014368,2]
[404489059,1770208241726,-1500.0,0.00014368,2]
[404489061,1770208241736,-1500.0,0.00014368,2]
[404489063,1770208241746,-1500.0,0.00014368,2]
[404489066,1770208241755,-1500.0,0.00014368,2]
[404489068,1770208241764,-1500.0,0.00014368,2]
[404489070,1770208241774,-1500.0,0.00014368,2]
[404489072,1770208241783,-1500.0,0.00014368,2]
[404489074,1770208241792,-1500.0,0.00014368,2]
[404489076,1770208241805,-1500.0,0.00014368,2]
[404489077,1770208241814,-1500.0,0.00014368,2]
[404489080,1770208241824,-1500.0,0.00014368,2]
[404489081,1770208241833,-1500.0,0.00014368,2]
[404489083,1770208241842,-212.79424277,0.00014368,2]
[404489085,1770208241852,-1500.0,0.00014368,2]
[404489087,1770208241861,-1500.0,0.00014368,2]
[404489089,1770208241870,-489.58305288,0.00014368,2]
[404489091,1770208241879,-1500.0,0.00014368,2]
[404489093,1770208241889,-1500.0,0.00014368,2]
[404489095,1770208241898,-1500.0,0.00014368,2]
[404489097,1770208241907,-1500.0,0.00014368,2]
[404489100,1770208241917,-1500.0,0.00014368,2]
[404489102,1770208241927,-1500.0,0.00014368,2]
[404489103,1770208241936,-1500.0,0.00014368,2]
[404489105,1770208241946,-1500.0,0.00014368,2]
[404489108,1770208241955,-473.53260077,0.00014368,2]
[404489109,1770208241964,-1500.0,0.00014368,2]
[404489112,1770208241973,-1004.98286969,0.00014368,2]
[404489113,1770208241982,-1500.0,0.00014368,2]
[404489116,1770208241992,-1500.0,0.00014368,2]
[404489118,1770208242003,-244.59813288,0.00014437,2]
[404489119,1770208242012,-720.0,0.00014585,2]
[404489122,1770208242021,-1000.0,0.00014592,2]
[404489124,1770208242031,-250.0,0.00014592,2]
[404489125,1770208242040,-500.0,0.00014592,2]
[404489128,1770208242050,-250.0,0.00014592,2]
[404489130,1770208242060,-500.0,0.00014592,2]
[404489132,1770208242070,-250.0,0.00014592,2]
[404489133,1770208242080,-500.0,0.00014592,2]
[404489135,1770208242089,-250.0,0.00014592,2]
[404489138,1770208242099,-500.0,0.00014592,2]
[404489140,1770208242108,-260.7630876,0.00014592,2]
[404489142,1770208242117,-500.0,0.00014592,2]
[404489144,1770208242126,-500.0,0.00014592,2]
[404489146,1770208242136,-1000.0,0.00014592,2]
[404489148,1770208242145,-639.97323841,0.00014592,2]
[404489150,1770208242154,-500.0,0.00014592,2]
[404489152,1770208242162,-500.0,0.00014592,2]
[404489154,1770208242172,-500.0,0.00014592,2]
[404489156,1770208242180,-500.0,0.00014592,2]
[404489158,1770208242189,-500.0,0.00014592,2]
[404489160,1770208242198,-500.0,0.00014592,2]
[404489162,1770208242208,-500.0,0.00014592,2]
[404489164,1770208242217,-500.0,0.00014592,2]
[404489166,1770208242226,-500.0,0.00014592,2]
[404489168,1770208242236,-500.0,0.00014592,2]
[404489170,1770208242245,-500.0,0.00014592,2]
[404489171,1770208242256,-500.0,0.00014592,2]
[404489173,1770208242265,-500.0,0.00014592,2]
[404489175,1770208242274,-500.0,0.00014592,2]
[404489177,1770208242283,-460.40576839,0.00014716,2]
[404489179,1770208242292,-201.91560759,0.00014768,2]
[404489181,1770208242302,-900.0,0.00014768,2]
[404489183,1770208242311,-503.32153171,0.00014795,2]
[404489185,1770208242321,-350.0,0.00014795,2]
[404489187,1770208242330,-511.72561389,0.00014795,2]
[404489189,1770208242339,-1502.55184038,0.00014795,2]
[404489191,1770208242348,-364.11352414,0.00014795,2]
[404489194,1770208242357,-500.0,0.00014795,2]
[404489195,1770208242366,-1500.0,0.00014795,2]
[404489208,1770208242474,-1500.0,0.00014795,2]
[404489210,1770208242485,-829.8043761,0.00014795,2]
[404489212,1770208242495,-329.84540431,0.00014795,2]
[404489214,1770208242504,-1227.8509917,0.00014795,2]
[404489216,1770208242513,-1500.0,0.00014795,2]
[404489218,1770208242522,-915.2832016,0.00014795,2]
[404489220,1770208242532,-503.90866418,0.00014795,2]
[404489222,1770208242540,-1500.0,0.00014795,2]
[404489224,1770208242549,-1500.0,0.00014795,2]
[404489226,1770208242558,-1177.05502283,0.00014795,2]
[404489228,1770208242567,-372.35853343,0.00014795,2]
[404489230,1770208242577,-1384.50715571,0.00014795,2]
[404489232,1770208242586,-615.75647517,0.00014795,2]
[404489234,1770208242599,-1500.0,0.00014795,2]
[404489237,1770208242609,-1500.0,0.00014795,2]
[404489238,1770208242618,-1500.0,0.00014795,2]
[404489240,1770208242627,-1500.0,0.00014795,2]
[404489243,1770208242637,-1500.0,0.00014795,2]
[404489244,1770208242646,-1500.0,0.00014795,2]
[404489246,1770208242655,-500.79819029,0.00014795,2]
[404489249,1770208242663,-1004.8151859,0.00014795,2]
[404489251,1770208242672,-447.98893381,0.00014795,2]
[404489252,1770208242681,-428.25432321,0.00014795,2]
[404489254,1770208242690,-1500.0,0.00014795,2]
[404489256,1770208242699,-504.26059451,0.00014795,2]
[404489258,1770208242708,-1500.0,0.00014795,2]
[404489259,1770208242717,-1001.10016724,0.00014795,2]
[404489260,1770208242727,-1500.0,0.00014795,2]
[404489261,1770208242736,-1149.47906763,0.00014795,2]
[404489262,1770208242745,-1002.24877944,0.00014795,2]
[404489263,1770208242755,-1003.40675429,0.00014795,2]
[404489264,1770208242764,-1500.0,0.00014795,2]
[404489265,1770208242774,-1500.0,0.00014795,2]
[404489266,1770208242784,-1500.0,0.00014795,2]
[404489267,1770208242793,-1000.0,0.00014795,2]
[404489268,1770208242802,-1500.0,0.00014795,2]
[404489269,1770208242812,-425.25,0.00014816,2]
[404489270,1770208242821,-145994.07363236,0.0001485,2]
[404489271,1770208243422,-3e-08,0.00014592,2]
[404489288,1770208245325,-499.99999997,0.00014592,2]
[404489289,1770208245335,-500.0,0.00014592,2]
[404489290,1770208245344,-500.0,0.00014592,2]
[404489291,1770208245353,-250.0,0.00014592,2]
[404489292,1770208245363,-500.0,0.00014592,2]
[404489293,1770208245372,-250.0,0.00014592,2]
[404489294,1770208245381,-381.04977201,0.00014592,2]
[404489295,1770208245391,-250.0,0.00014592,2]
[404489296,1770208245401,-250.0,0.00014592,2]
[404489297,1770208245411,-250.0,0.00014592,2]
[404489298,1770208245420,-250.0,0.00014592,2]
[404489299,1770208245429,-250.0,0.00014592,2]
[404489300,1770208245440,-250.0,0.00014592,2]
[404489301,1770208245450,-5574.1219257,0.0001485,2]
[404489385,1770208269497,-500.0,0.00013273,2]
[404489386,1770208269526,-245.81439108,0.00013699,2]
[404489387,1770208269555,-500.0,0.00013699,2]
[404489388,1770208269583,-1000.0,0.00013821,2]
[404489389,1770208269614,-194.87641558,0.00014247,2]
[404489390,1770208269629,-500.0,0.00014247,2]
[404489391,1770208269642,-245.81439108,0.00014247,2]
[404489392,1770208269654,-59.30919334,0.00014247,2]
[404489393,1770208269666,-440.69080666,0.00014368,2]
[404489394,1770208269677,-1000.0,0.00014368,2]
[404489395,1770208269689,-59.30919334,0.00014368,2]
[404489396,1770208269700,-940.69080666,0.00014446,2]
[404489397,1770208308396,-393.77401362,0.00012725,2]
[404489398,1770208308423,-500.0,0.00013273,2]
[404489399,1770208308453,-500.0,0.00013273,2]
[404489400,1770208308486,-500.0,0.00013273,2]
[404489401,1770208308514,-500.0,0.00013273,2]
[404489402,1770208308541,-500.0,0.00013273,2]
[404489403,1770208308738,-500.0,0.00013273,2]
[404489404,1770208308765,-256.68663128,0.00013273,2]
[404489405,1770208308792,-500.0,0.00013273,2]
[404489406,1770208308819,-500.0,0.00013699,2]
[404489407,1770208308846,-221.40863651,0.00013699,2]
[404489408,1770208341469,449.0,0.00039775,120]
[404489409,1770208573508,94126.29017576,0.00039745,120]
[404489410,1770208679405,240.19,8.238e-05,2]
[404489413,1770208776715,19494.44,0.0001,2]
[404489414,1770208791808,-300.0,0.00012546,2]
[404489415,1770208795772,-377.75507626,0.00012547,2]
[404489416,1770208802948,300.0,0.00012546,2]
[404489417,1770208807866,1200.0,0.00012546,2]
[404489418,1770208831394,200.0,0.00012547,2]
[404489424,1770208885767,-294.89242398,0.00012546,2]
[404489425,1770208887992,-5.10757602,0.00012546,2]
[404489426,1770208888016,-335.16336122,0.00012547,2]
[404489427,1770209006508,-284.60512044,0.00011814,2]
[404489428,1770209008586,900.0,0.00039747,120]
[404489429,1770209035852,-220.25885633,0.00011696,2]
[404489430,1770209038301,-180.0,0.00011696,2]
[404489431,1770209039838,-300.0,0.00011696,2]
[404489432,1770209041822,-300.0,0.00011696,2]
[404489433,1770209044526,-300.0,0.00011696,2]
[404489434,1770209046694,-500.0,0.00011696,2]
[404489441,1770209378866,663.61,0.00039745,20]
[404489469,1770209432363,-1180.01900936,0.00011149,2]
[404489558,1770209440911,-3819.98099064,0.00011149,2]
[404489560,1770209440923,-982.7234609,0.00011261,2]
[404489562,1770209440933,-300.0,0.00011754,2]
[404489565,1770209440942,-1200.0,0.00011754,2]
[404489567,1770209440952,-652.18409642,0.00011755,2]
[404490103,1770209446783,-2014.79658981,0.00011755,2]
[404490391,1770209707306,151.86,0.00039745,60]
[404490395,1770210011568,703.7465969,0.00010849,2]
[404490397,1770210175928,-903.0829404,0.00011108,2]
[404490398,1770210177371,-4160.3518276,0.00011108,2]
[404490399,1770210177486,-765.70509407,0.00011108,2]
[404490400,1770210177600,-913.60125073,0.00011108,2]
[404490401,1770210180163,-201.24885956,0.00011131,2]
[404490402,1770210180187,-798.75114044,0.00011199,2]
[404490403,1770210183407,-401.24885956,0.00011199,2]
[404490404,1770210183430,-261.64843993,0.00011221,2]
[404490405,1770210185480,-208.04588896,0.00011221,2]
[404490406,1770210187023,-379.14731805,0.00011221,2]
[404490407,1770210187047,-10.26840596,0.00011221,2]
[404490408,1770210189103,-565.34113472,0.00011221,2]
[404490409,1770210189126,-177.0985858,0.00011314,2]
[404490410,1770210189149,-300.0,0.00011374,2]
[404490411,1770210189175,-65.57278613,0.00011375,2]
[404490412,1770210205910,-245.59257985,0.00011375,2]
[404490413,1770210207396,-315.97182897,0.00011375,2]
[404490414,1770210209147,-181.27235969,0.00011375,2]
[404490415,1770210211219,-196.75057058,0.00011375,2]
[404490416,1770210214495,-209.6709009,0.00011375,2]
[404490417,1770210216089,-286.21767235,0.00011375,2]
[404490418,1770210217657,-359.97128875,0.00011375,2]
[404490419,1770210235885,-599.19118033,0.00011375,2]
[404490420,1770210237370,-407.89705289,0.00011261,2]
[404490421,1770210240706,-220.73090711,0.00011261,2]
[404490422,1770210242719,-198.67201306,0.00011261,2]
[404490424,1770210251433,-500.0,0.00011261,2]
[404490425,1770210253391,-279.26909289,0.00011261,2]
[404490426,1770210255466,-164.55530776,0.00011261,2]
[404490427,1770210257188,-3228.87562629,0.00011261,2]
[404490428,1770210258548,-205.46229997,0.00011374,2]
[404490429,1770210258888,3542.25874742,0.00011261,2]
[404490430,1770210258912,1457.74125258,0.00011261,2]
[404490431,1770210260085,-94.53770003,0.00011374,2]
[404490432,1770210260114,-117.94178316,0.00011375,2]
[404490433,1770210265882,-185.97834066,0.00011375,2]
[404490434,1770210270538,-500.0,0.00011375,2]
[404490435,1770210272101,-247.1592506,0.00011375,2]
[404490436,1770210273637,-632.34070059,0.00011375,2]
[404490437,1770210276329,-290.89669776,0.00011375,2]
[404490438,1770210277788,-216.82413385,0.00011375,2]
[404490439,1770210280770,-301.32798694,0.00011375,2]
[404490440,1770210280934,5000.0,0.00011261,2]
[404490441,1770210282774,-528.00152235,0.00011375,2]
[404490442,1770210285619,-206.55552103,0.00011375,2]
[404490443,1770210287946,-198.0,0.00011375,2]
[404490444,1770210290187,-303.01421165,0.00011375,2]
[404490445,1770210292328,-294.34901173,0.00011375,2]
[404490446,1770210294564,-323.53358722,0.00011375,2]
[404490447,1770210298762,-166.73794428,0.00011375,2]
[404490448,1770210300945,-213.57554963,0.00011375,2]
[404490449,1770210302332,-300.0,0.00011374,2]
[404490450,1770210302354,-279.57397846,0.00011375,2]
[404490451,1770210303774,3542.26874742,0.00011261,2]
[404490452,1770210303798,1457.73125258,0.00011261,2]
[404490453,1770210303860,-173.11762635,0.00011375,2]
[404490454,1770210309986,1000.0,0.00030137,120]
[404490455,1770210310918,-175.04847996,0.00011374,2]
[404490456,1770210325873,-499.91892598,0.00011374,2]
[404490457,1770210325915,5000.0,0.00011261,2]
[404490458,1770210327958,-231.1123756,0.00011374,2]
[404490459,1770210329441,-160.56,0.00011374,2]
[404490460,1770210333778,-133.36021846,0.00011374,2]
[404490461,1770210333801,-216.82413385,0.00011374,2]
[404490462,1770210333824,-78.39916304,0.00011375,2]
[404490463,1770210335426,-353.84901916,0.00011375,2]
[404490464,1770210356350,-375.32271402,0.00011696,2]
[404490465,1770210357909,-500.0,0.00011696,2]
[404490466,1770210359355,-189.59126743,0.00011696,2]
[404490467,1770210361326,-155.07506515,0.00011696,2]
[404490468,1770210364447,-317.46580245,0.00011696,2]
[404490469,1770210366238,-191.28207301,0.00011696,2]
[404490470,1770210382627,-3271.26307794,0.00011696,2]
[404490471,1770210382659,-300.0,0.00011813,2]
[404490472,1770210383184,-5678.75337755,0.00011814,2]
[404490473,1770210383334,-10000.01,0.00011814,2]
[404490474,1770210383494,-3792.45979345,0.00011814,2]
[404490475,1770210383524,-115.48686256,0.00011814,2]
[404490476,1770210383553,-300.0,0.0001251,2]
[404490477,1770210383619,-1584.11668798,0.00012511,2]
[404490478,1770210388887,-95.88331202,0.00012511,2]
[404490479,1770210388921,-9808.24337596,0.00012547,2]
[404490480,1770210389017,-10000.01,0.00012547,2]
[404490481,1770210392536,-10000.01,0.00012547,2]
[404490482,1770210392673,-5000.0,0.00012422,2]
[404490483,1770210392707,-0.01,0.00012547,2]
[404490484,1770210392795,-10000.01,0.00012547,2]
[404490485,1770210395648,-10000.01,0.00012547,2]
[404490486,1770210395772,-137.81625868,0.00012547,2]
[404490487,1770210395817,-9724.37748264,0.00012753,2]
[404490488,1770210395904,-275.62251736,0.00012753,2]
[404490489,1770210414767,5000.0,0.00012753,2]
[404490492,1770210483398,168.13,8.972e-05,2]
[404490493,1770210490761,428.51366141,0.00012511,2]
[404490500,1770210556128,3522.82,0.00030137,120]
[404490501,1770210572515,-5000.0,0.00012999,2]
[404490502,1770210588832,0.01,0.00012999,2]
[404490503,1770210588854,4999.99,0.00012999,2]
[404490504,1770210611038,367.53485398,0.00012511,2]
[404490505,1770210611498,4632.48514602,0.00012999,2]
[404490506,1770210611523,367.51485398,0.00012999,2]
[404490519,1770210631506,-197.22388237,0.00013065,2]
[404490521,1770210631515,-459.42918844,0.00013169,2]
[404490524,1770210631525,-826.97253918,0.00013169,2]
[404490526,1770210631534,-233.48137398,0.00013173,2]
[404490528,1770210631544,-1200.0,0.00013272,2]
[404490530,1770210631553,-501.28742742,0.00013273,2]
[404490532,1770210631562,-365.96211968,0.00013273,2]
[404490533,1770210631571,-500.0,0.00013273,2]
[404490535,1770210631580,-500.0,0.00013273,2]
[404490537,1770210631589,-500.0,0.00013273,2]
[404490539,1770210631599,-500.0,0.00013273,2]
[404490541,1770210631609,-500.0,0.00013273,2]
[404490543,1770210631617,-275.49893864,0.00013273,2]
[404490590,1770210640429,-3e-08,0.0001314,2]
[404491043,1770210644886,-3000.0,0.0001314,2]
[404491317,1770210826642,5000.0,0.00012999,2]
[404491318,1770210848947,4632.49514602,0.00012999,2]
[404491319,1770210848969,367.50485398,0.00012999,2]
[404491320,1770210855478,202.30586735,0.00039744,20]
[404491321,1770210874694,9632.50514602,0.00012443,2]
[404491322,1770210874717,10000.01,0.00012443,2]
[404491323,1770210874740,9694.87165218,0.00012443,2]
[404491324,1770210918502,208.08925379,0.00012965,2]
[404491325,1770211008446,9791.92074621,0.00012662,2]
[404491326,1770211008468,208.07925379,0.00012662,2]
[404491327,1770211065081,5000.0,0.00012999,2]
[404491328,1770211087300,4791.93074621,0.00012999,2]
[404491329,1770211087325,208.06925379,0.00012999,2]
[404491330,1770211109858,3376.26118785,0.00012999,2]
[404491331,1770211202802,170.71037166,0.00012902,2]
[404491332,1770211325514,182.13973473,0.00012902,2]
[404491336,1770211512913,297.59005523,0.00012511,2]
[404491337,1770211516224,535.66209941,0.00012511,2]
[404491342,1770211633892,200.0,0.00039743,60]
[404491343,1770211645893,400.0,0.00039743,60]
[404491344,1770211669030,10000.01,0.00012,5]
[404491345,1770211669052,10000.01,0.00012,5]
[404491346,1770211669074,3747.70496488,0.00012,5]
[404491347,1770211706259,682.273836,0.00039743,120]
[404491349,1770211816259,391.72654235,0.0001276,2]
[404491376,1770211831871,-756.40713406,0.0001304,2]
[404491377,1770211831880,-208.08925379,0.0001304,2]
[404491378,1770211831890,-193.27940472,0.00013061,2]
[404491379,1770211831899,-188.42946888,0.00013173,2]
[404491380,1770211831909,-300.0,0.00013271,2]
[404491381,1770211831918,-1200.0,0.00013271,2]
[404491382,1770211831928,-5679.24435803,0.00013272,2]
[404491383,1770211831939,-4214.62389504,0.00013272,2]
[404491394,1770211840254,-352.24076844,0.00013271,2]
[404491395,1770211840264,-500.0,0.00013271,2]
[404491396,1770211840273,-500.0,0.00013271,2]
[404491397,1770211840282,-500.00385739,0.00013271,2]
[404491398,1770211840292,-352.9441947,0.00013271,2]
[404491399,1770211840301,-500.0,0.00013271,2]
[404491400,1770211840310,-319.92106783,0.00013271,2]
[404491401,1770211840319,-611.19052388,0.00013271,2]
[404491402,1770211840329,-518.79527165,0.00013271,2]
[404491403,1770211840338,-500.0,0.00013271,2]
[404491404,1770211840347,-500.0,0.00013271,2]
[404491405,1770211840356,-50.45274922,0.00013272,2]
[404491407,1770211840370,-334.3159,0.00013272,2]
[404491413,1770211843462,208.08925379,0.0001294,2]
[404491422,1770211845542,-808.9826,0.00013272,2]
[404491427,1770211846211,-7372.82405893,0.00013272,2]
[404491428,1770211862103,-193.52324908,0.0001314,2]
[404491429,1770211862145,-2262.95350184,0.00013272,2]
[404491433,1770211891370,-193.52324908,0.00013272,2]
[404491438,1770212158499,411.64855284,0.00012681,2]
[404491439,1770212237746,-1200.0,0.00013272,2]
[404491440,1770212237768,-300.0,0.00013272,2]
[404491441,1770212237789,-189.41381663,0.00013272,2]
[404491442,1770212237807,-500.0,0.00013273,2]
[404491443,1770212237827,-500.0,0.00013273,2]
[404491444,1770212237846,-500.0,0.00013273,2]
[404491445,1770212237865,-500.0,0.00013273,2]
[404491446,1770212237886,-500.0,0.00013273,2]
[404491447,1770212237906,-500.0,0.00013273,2]
[404491448,1770212237926,-500.0,0.00013273,2]
[404491449,1770212237945,-392.98246409,0.00013273,2]
[404491450,1770212237965,-500.0,0.00013273,2]
[404491451,1770212237985,-500.0,0.00013273,2]
[404491452,1770212238005,-500.0,0.00013273,2]
[404491453,1770212238024,-500.0,0.00013273,2]
[404491454,1770212238045,-237.63490441,0.00013273,2]
[404491455,1770212238065,-500.0,0.00013273,2]
[404491456,1770212238086,-500.0,0.00013273,2]
[404491457,1770212238107,-500.0,0.00013273,2]
[404491458,1770212238127,-500.0,0.00013273,2]
[404491459,1770212238150,-500.0,0.00013273,2]
[404491460,1770212238172,-257.75877304,0.00013416,2]
[404491461,1770212238193,-500.0,0.00013494,2]
[404491462,1770212238218,-500.0,0.00013494,2]
[404491463,1770212238239,-500.0,0.00013494,2]
[404491464,1770212238258,-500.0,0.00013494,2]
[404491465,1770212238281,-500.0,0.00013494,2]
[404491466,1770212238305,-17887.75139753,0.00013497,2]
[404491467,1770212238326,-300.0,0.00013529,2]
[404491468,1770212238349,-788.089608,0.0001363,2]
[404491469,1770212238369,-300.0,0.00013673,2]
[404491470,1770212238389,-17597.5758956,0.00013699,2]
[404491471,1770212238410,-1484.097996,0.00013699,2]
[404491472,1770212238430,-1000.0,0.00013699,2]
[404491473,1770212238450,-438.09636707,0.00013699,2]
[404491474,1770212238470,-338.8397926,0.00013699,2]
[404491475,1770212238491,-169.99202534,0.00013699,2]
[404491476,1770212238511,-500.2543677,0.00013699,2]
[404491477,1770212238530,-432.33337893,0.00013699,2]
[404491478,1770212238551,-500.0,0.00013699,2]
[404491479,1770212238701,-500.0,0.00013699,2]
[404491480,1770212238723,-500.0,0.00013699,2]
[404491481,1770212238746,-500.0,0.00013699,2]
[404491482,1770212238767,-500.0,0.00013699,2]
[404491483,1770212238788,-500.0,0.00013699,2]
[404491484,1770212238809,-500.0,0.00013699,2]
[404491485,1770212238830,-500.0,0.00013699,2]
[404491486,1770212238850,-500.0,0.00013699,2]
[404491487,1770212238869,-452.20051875,0.00013699,2]
[404491488,1770212238890,-500.0,0.00013699,2]
[404491489,1770212238910,-568.35498859,0.00013699,2]
[404491490,1770212238931,-500.0,0.00013699,2]
[404491491,1770212238951,-293.67040451,0.00013721,2]
[404491492,1770212238971,-1000.0,0.00013821,2]
[404491493,1770212238990,-1000.0,0.00013821,2]
[404491494,1770212239009,-1000.0,0.00013821,2]
[404491495,1770212239030,-1000.0,0.00013821,2]
[404491496,1770212239049,-1000.0,0.00013821,2]
[404491497,1770212239070,-1000.0,0.00013821,2]
[404491498,1770212239091,-637.91783422,0.00013821,2]
[404491499,1770212239113,-1000.0,0.00013821,2]
[404491500,1770212239135,-1000.0,0.00013821,2]
[404491501,1770212239156,-1000.0,0.00013821,2]
[404491502,1770212239177,-1000.0,0.00013821,2]
[404491503,1770212239198,-1000.0,0.00013821,2]
[404491504,1770212239218,-1000.0,0.00013821,2]
[404491505,1770212239238,-875.33030032,0.00013821,2]
[404491506,1770212239258,-237.97693174,0.00013821,2]
[404491507,1770212239278,-6543.824513,0.00014148,2]
[404491508,1770212239298,-788.089608,0.00014204,2]
[404491509,1770212239318,-600.0,0.00014221,2]
[404491510,1770212239338,-1000.0,0.00014247,2]
[404491511,1770212239357,-375.31483149,0.00014247,2]
[404491512,1770212239378,-500.0,0.00014247,2]
[404491513,1770212239398,-1000.0,0.00014247,2]
[404491514,1770212239417,-1000.0,0.00014247,2]
[404491515,1770212239436,-936.66421864,0.00014247,2]
[404491516,1770212239456,-425.39496538,0.00014247,2]
[404491517,1770212239475,-506.90544277,0.00014247,2]
[404491518,1770212239495,-342.28780942,0.00014247,2]
[404491519,1770212239513,-1000.0,0.00014247,2]
[404491520,1770212239533,-1901.0,0.000143,2]
[404491521,1770212239554,-500.0,0.0001436,2]
[404491522,1770212239576,-500.0,0.0001436,2]
[404491523,1770212239597,-500.0,0.0001436,2]
[404491524,1770212239618,-500.0,0.0001436,2]
[404491525,1770212239639,-500.0,0.0001436,2]
[404491526,1770212239660,-250.0,0.0001436,2]
[404491527,1770212239680,-250.0,0.0001436,2]
[404491528,1770212239705,-250.0,0.0001436,2]
[404491529,1770212239726,-250.0,0.0001436,2]
[404491530,1770212239748,-250.0,0.0001436,2]
[404491531,1770212239770,-250.0,0.0001436,2]
[404491532,1770212239792,-250.0,0.0001436,2]
[404491533,1770212239814,-250.0,0.0001436,2]
[404491534,1770212239837,-500.0,0.0001436,2]
[404491535,1770212239857,-250.0,0.0001436,2]
[404491536,1770212239877,-500.0,0.0001436,2]
[404491537,1770212239897,-250.0,0.0001436,2]
[404491538,1770212239916,-500.0,0.0001436,2]
[404491539,1770212239936,-250.0,0.0001436,2]
[404491540,1770212239956,-500.0,0.0001436,2]
[404491541,1770212239976,-500.0,0.0001436,2]
[404491542,1770212239997,-500.0,0.0001436,2]
[404491543,1770212240017,-1500.0,0.00014368,2]
[404491544,1770212240037,-1500.0,0.00014368,2]
[404491545,1770212240056,-1000.0,0.00014368,2]
[404491546,1770212240077,-1500.0,0.00014368,2]
[404491547,1770212240096,-1000.80139127,0.00014368,2]
[404491548,1770212240115,-1500.0,0.00014368,2]
[404491549,1770212240134,-197.11741534,0.00014368,2]
[404491550,1770212240152,-1500.0,0.00014368,2]
[404491551,1770212240170,-1500.0,0.00014368,2]
[404491552,1770212240190,-1500.0,0.00014368,2]
[404491553,1770212240206,-168.70313376,0.00014368,2]
[404491554,1770212240225,-1500.0,0.00014368,2]
[404491555,1770212240243,-1460.1246115,0.00014528,2]
[404491556,1770212240262,-420.0,0.00014551,2]
[404491557,1770212240280,-181.39428124,0.00014553,2]
[404491558,1770212240300,-530.0,0.00014599,2]
[404491559,1770212240322,-392.33,0.0001475,2]
[404491560,1770212240342,-900.0,0.00014768,2]
[404491561,1770212240362,-788.089608,0.00014777,2]
[404491562,1770212240381,-1500.0,0.00014795,2]
[404491563,1770212240401,-1263.66351327,0.00014795,2]
[404491564,1770212240421,-305.03295438,0.00014795,2]
[404491565,1770212240440,-1500.0,0.00014795,2]
[404491566,1770212240460,-336.255,0.00014818,2]
[404491567,1770212240480,-24006.73493747,0.0001485,2]
[404491568,1770212267742,417.07,0.00039743,20]
[404491569,1770212267967,386.39229579,0.00012999,2]
[404491570,1770212436216,3800.0,0.00039748,20]
[404491572,1770212455330,5000.0,0.00012999,2]
[404491573,1770212478504,5000.0,0.00012999,2]
[404491576,1770212601807,-185.6255403,0.00013206,2]
[404491577,1770212601831,-300.0,0.00013271,2]
[404491578,1770212601857,-214.3744597,0.00013272,2]
[404491579,1770212637843,5000.0,0.00039748,60]
[404491580,1770212698238,0.01,0.00012555,2]
[404491581,1770212698259,6231.7909985,0.00012555,2]
[404491616,1770213031891,-300.0,0.00013269,2]
[404491617,1770213031901,-300.0,0.00013269,2]
[404491618,1770213031911,-1200.0,0.00013269,2]
[404491619,1770213031920,-181.91302949,0.0001327,2]
[404491620,1770213031932,-500.0,0.00013273,2]
[404491622,1770213031941,-500.0,0.00013273,2]
[404491624,1770213031951,-357.14063645,0.00013273,2]
[404491820,1770213041652,-209.40970154,0.0001314,2]